fUST/lending_fUST_20250204
["ID","MTS","AMOUNT","RATE_DAILY","PERIOD"]
[351581079,1738641043123,-605.80028933,0.00016438,2]
[351581080,1738641043132,-500.0,0.00016438,2]
[351581081,1738641043141,-500.0,0.00016438,2]
[351581082,1738641043151,-510.2040871,0.00016438,2]
[351581083,1738641043160,-2511.01,0.00016438,2]
[351581084,1738641043170,-957.8,0.00016438,2]
[351581085,1738641043180,-1449.24,0.00016438,2]
[351581086,1738641043189,-511.90201065,0.00016438,2]
[351581087,1738641043198,-500.0,0.00016438,2]
[351581088,1738641043208,-3494.99,0.00016438,2]
[351581089,1738641043217,-442.70559337,0.00016438,2]
[351581090,1738641043227,-505.80820608,0.00016438,2]
[351581091,1738641043237,-1453.83,0.00016438,2]
[351581092,1738641043246,-500.0,0.00016438,2]
[351581093,1738641043256,-500.0,0.00016438,2]
[351581094,1738641043265,-500.0,0.00016438,2]
[351581095,1738641043274,-184.63178003,0.00016438,2]
[351581096,1738641043283,-500.0,0.00016438,2]
[351581097,1738641043293,-845.21,0.00016438,2]
[351581098,1738641043303,-500.0,0.00016438,2]
[351581099,1738641043312,-500.0,0.00016438,2]
[351581100,1738641043322,-580.13,0.00016438,2]
[351581101,1738641043331,-508.21728755,0.00016438,2]
[351581102,1738641043341,-2336.05,0.00016438,2]
[351581103,1738641043350,-1134.81,0.00016438,2]
[351581104,1738641043360,-500.0,0.00016438,2]
[351581105,1738641043370,-500.0,0.00016438,2]
[351581106,1738641043380,-503.52746898,0.00016438,2]
[351581107,1738641043390,-500.0,0.00016438,2]
[351581108,1738641043400,-398.59732071,0.00016438,2]
[351581109,1738641043413,-101.40267929,0.00016438,2]
[351581110,1738641043424,-504.94686773,0.00016438,2]
[351581111,1738641043440,-265.88381282,0.00016438,2]
[351581112,1738641043453,-234.11618718,0.00016438,2]
[351581113,1738641043462,-500.0,0.00016438,2]
[351581114,1738641043473,-500.0,0.00016438,2]
[351581115,1738641043483,-500.0,0.00016438,2]
[351581116,1738641043492,-500.0,0.00016438,2]
[351581117,1738641043502,-500.0,0.00016438,2]
[351581118,1738641043511,-513.09694877,0.00016438,2]
[351581119,1738641043521,-532.14038651,0.00016438,2]
[351581120,1738641043530,-508.73861841,0.00016438,2]
[351581121,1738641043540,-304.73416212,0.00016438,2]
[351581122,1738641043550,-416.71574627,0.00016438,2]
[351581123,1738641043559,-892.9371369,0.00016438,2]
[351581124,1738641043571,-85.9828631,0.00016438,2]
[351581125,1738641043581,-539.81706358,0.00016438,2]
[351581126,1738641043590,-500.0,0.00016438,2]
[351581127,1738641043599,-500.0,0.00016438,2]
[351581128,1738641043609,-500.0,0.00016438,2]
[351581129,1738641043619,-500.0,0.00016438,2]
[351581130,1738641043629,-1464.53,0.00016438,2]
[351581131,1738641043638,-500.0,0.00016438,2]
[351581132,1738641043648,-500.0,0.00016438,2]
[351581133,1738641043657,-500.0,0.00016438,2]
[351581134,1738641043667,-500.0,0.00016438,2]
[351581135,1738641043677,-500.0,0.00016438,2]
[351581136,1738641043686,-500.0,0.00016438,2]
[351581137,1738641043696,-500.0,0.00016438,2]
[351581138,1738641043705,-504.03411681,0.00016438,2]
[351581139,1738641043714,-500.0,0.00016438,2]
[351581140,1738641043723,-500.0,0.00016438,2]
[351581141,1738641043733,-2100.27,0.00016438,2]
[351581142,1738641043742,-500.0,0.00016438,2]
[351581143,1738641043752,-511.56541307,0.00016438,2]
[351581144,1738641043761,-1320.4,0.00016438,2]
[351581145,1738641043771,-500.0,0.00016438,2]
[351581146,1738641043781,-6528.26,0.00016438,2]
[351581147,1738641043790,-1220.43109946,0.00016438,2]
[351581148,1738641044026,-358.77500001,0.00016438,2]
[351581149,1738641044038,-303.73390053,0.00016438,2]
[351581150,1738641044048,-387.41609947,0.00016438,2]
[351581237,1738641046349,-611.23913475,0.00015872,2]
[351581238,1738641046359,-153.0,0.00016431,2]
[351581239,1738641046368,-112.58390053,0.00016438,2]
[351581240,1738641046377,-927.09,0.00016438,2]
[351581241,1738641046387,-508.36374656,0.00016438,2]
[351581242,1738641046395,-9051.3,0.00016438,2]
[351581243,1738641046405,-1145.18,0.00016438,2]
[351581244,1738641046414,-505.02041017,0.00016438,2]
[351581245,1738641046426,-500.0,0.00016438,2]
[351581246,1738641046435,-500.0,0.00016438,2]
[351581247,1738641046444,-500.0,0.00016438,2]
[351581248,1738641046455,-500.0,0.00016438,2]
[351581249,1738641046465,-500.0,0.00016438,2]
[351581250,1738641046475,-500.0,0.00016438,2]
[351581251,1738641046484,-2874.75,0.00016438,2]
[351581252,1738641046493,-2443.47,0.00016438,2]
[351581253,1738641046503,-500.0,0.00016438,2]
[351581254,1738641046514,-500.0,0.00016438,2]
[351581255,1738641046523,-500.0,0.00016438,2]
[351581256,1738641046532,-544.23,0.00016438,2]
[351581257,1738641046541,-629.34,0.00016438,2]
[351581258,1738641046550,-500.0,0.00016438,2]
[351581259,1738641046560,-1554.82,0.00016438,2]
[351581260,1738641046570,-455.34521853,0.00016438,2]
[351581261,1738641046582,-44.65478147,0.00016438,2]
[351581262,1738641046591,-500.0,0.00016438,2]
[351581263,1738641046600,-500.0,0.00016438,2]
[351581264,1738641046609,-737.2613601,0.00016438,2]
[351581265,1738641046621,-528.9786399,0.00016438,2]
[351581266,1738641046630,-365.02118943,0.00016438,2]
[351581267,1738641050705,205.77,0.00010959,2]
[351581268,1738641061210,171.47,0.00010959,2]
[351581269,1738641071698,857.39,0.00010959,2]
[351581272,1738641122850,377.04637553,0.00014968,2]
[351581273,1738641169172,7011.19150613,0.00014,2]
[351581274,1738641174718,215.08,0.00010959,2]
[351581275,1738641185410,179.24,0.00010959,2]
[351581276,1738641195900,896.2,0.00010959,2]
[351581277,1738641297203,254.82925,0.00013973,2]
[351581282,1738641653948,5000.0,0.00015012,2]
[351581285,1738641846551,1414.85507286,0.00015012,2]
[351581286,1738641866092,791.6,0.00015012,2]
[351581299,1738642140487,242.087787,0.00013973,2]
[351581348,1738642232280,-220.606143,0.00015182,2]
[351581350,1738642232290,-300.0,0.00015312,2]
[351581352,1738642232299,-1989.0033319,0.00015313,2]
[351581354,1738642232311,-1282.82507935,0.00015313,2]
[351581358,1738642232334,-321.06130044,0.00015313,2]
[351581364,1738642232390,-883.45602944,0.00015313,2]
[351581366,1738642232401,-2342.3,0.00015313,2]
[351581387,1738642238204,-3567.9502026,0.00015313,2]
[351581388,1738642238258,-531.96040214,0.00015313,2]
[351581397,1738642240285,-13981.44365413,0.00015313,2]
[351581398,1738642240296,-326.2787897,0.00015335,2]
[351581399,1738642240306,-418.31098516,0.00015352,2]
[351581400,1738642240316,-800.0,0.00015972,2]
[351581402,1738642240326,-165.44254086,0.00016338,2]
[351581404,1738642240335,-590.3353282,0.00016338,2]
[351581405,1738642240345,-153.0,0.00016388,2]
[351581406,1738642240355,-153.0,0.00016388,2]
[351581407,1738642240364,-153.0,0.00016388,2]
[351581408,1738642240374,-153.0,0.00016388,2]
[351581409,1738642240384,-153.0,0.00016388,2]
[351581410,1738642240393,-153.0,0.00016388,2]
[351581411,1738642240403,-153.0,0.00016388,2]
[351581412,1738642240413,-153.0,0.00016388,2]
[351581413,1738642240423,-153.0,0.00016388,2]
[351581414,1738642240432,-153.0,0.00016388,2]
[351581415,1738642240445,-153.0,0.00016388,2]
[351581416,1738642240454,-153.0,0.00016388,2]
[351581417,1738642240464,-153.0,0.00016388,2]
[351581418,1738642240474,-153.0,0.00016388,2]
[351581419,1738642240640,-153.0,0.00016388,2]
[351581420,1738642240650,-153.0,0.00016388,2]
[351581421,1738642240660,-499.0,0.00016437,2]
[351581422,1738642240669,-299.00622135,0.00016438,2]
[351581423,1738642240680,-500.71153679,0.00016438,2]
[351581424,1738642240689,-3913.22,0.00016438,2]
[351581425,1738642240701,-528.43807909,0.00016438,2]
[351581426,1738642240711,-520.30674239,0.00016438,2]
[351581427,1738642240721,-501.13339162,0.00016438,2]
[351581428,1738642240731,-516.20146716,0.00016438,2]
[351581429,1738642240741,-333.56975195,0.00016438,2]
[351581430,1738642240751,-500.0,0.00016438,2]
[351581431,1738642240761,-500.0,0.00016438,2]
[351581432,1738642240771,-266.67256438,0.00016438,2]
[351581433,1738642240780,-500.0,0.00016438,2]
[351581434,1738642240790,-500.0,0.00016438,2]
[351581435,1738642240800,-507.65825246,0.00016438,2]
[351581436,1738642240809,-500.0,0.00016438,2]
[351581437,1738642240818,-500.0,0.00016438,2]
[351581438,1738642240829,-500.0,0.00016438,2]
[351581439,1738642240841,-500.0,0.00016438,2]
[351581440,1738642240852,-500.0,0.00016438,2]
[351581441,1738642240862,-506.62152571,0.00016438,2]
[351581442,1738642240871,-564.64705159,0.00016438,2]
[351581443,1738642240882,-500.0,0.00016438,2]
[351581444,1738642240892,-500.0,0.00016438,2]
[351581445,1738642240902,-504.64048291,0.00016438,2]
[351581446,1738642240913,-500.0,0.00016438,2]
[351581447,1738642240922,-196.93508722,0.00016438,2]
[351581448,1738642240932,-500.0,0.00016438,2]
[351581449,1738642240944,-500.0,0.00016438,2]
[351581450,1738642240955,-345.56851319,0.00016438,2]
[351581451,1738642240964,-501.22733542,0.00016438,2]
[351581452,1738642240974,-500.0,0.00016438,2]
[351581453,1738642240984,-500.0,0.00016438,2]
[351581454,1738642240994,-504.08000144,0.00016438,2]
[351581455,1738642241004,-500.0,0.00016438,2]
[351581456,1738642241014,-509.66567224,0.00016438,2]
[351581457,1738642241023,-500.0,0.00016438,2]
[351581458,1738642241033,-500.0,0.00016438,2]
[351581459,1738642241043,-501.9822771,0.00016438,2]
[351581460,1738642241053,-500.0,0.00016438,2]
[351581461,1738642241063,-500.0,0.00016438,2]
[351581462,1738642241073,-500.0,0.00016438,2]
[351581463,1738642241082,-500.0,0.00016438,2]
[351581464,1738642241092,-500.0,0.00016438,2]
[351581465,1738642241102,-500.0,0.00016438,2]
[351581466,1738642241112,-500.0,0.00016438,2]
[351581467,1738642241122,-500.0,0.00016438,2]
[351581468,1738642241131,-555.01,0.00016438,2]
[351581469,1738642241141,-510.49271984,0.00016438,2]
[351581470,1738642241150,-260.80404169,0.00016438,2]
[351581471,1738642241160,-565.43,0.00016438,2]
[351581472,1738642241169,-500.0,0.00016438,2]
[351581473,1738642241178,-500.0,0.00016438,2]
[351581474,1738642241188,-345.92077531,0.00016438,2]
[351581475,1738642241200,-500.0,0.00016438,2]
[351581476,1738642241210,-509.2539214,0.00016438,2]
[351581477,1738642241220,-517.50165458,0.00016438,2]
[351581478,1738642241230,-508.15886591,0.00016438,2]
[351581479,1738642241241,-525.65589704,0.00016438,2]
[351581480,1738642241250,-511.76402544,0.00016438,2]
[351581481,1738642241260,-1172.95,0.00016438,2]
[351581482,1738642241270,-500.0,0.00016438,2]
[351581483,1738642241280,-500.0,0.00016438,2]
[351581484,1738642241290,-510.49021339,0.00016438,2]
[351581485,1738642241301,-500.0,0.00016438,2]
[351581486,1738642241311,-520.51699943,0.00016438,2]
[351581487,1738642241320,-501.40004917,0.00016438,2]
[351581488,1738642241330,-1117.85,0.00016438,2]
[351581489,1738642241340,-500.0,0.00016438,2]
[351581490,1738642241349,-503.35574741,0.00016438,2]
[351581491,1738642241359,-500.0,0.00016438,2]
[351581492,1738642241372,-500.0,0.00016438,2]
[351581493,1738642241382,-500.0,0.00016438,2]
[351581494,1738642241391,-16.40756346,0.00016438,2]
[351581495,1738642241405,-483.59243654,0.00016438,2]
[351581496,1738642241414,-500.0,0.00016438,2]
[351581497,1738642241423,-500.0,0.00016438,2]
[351581498,1738642241432,-500.0,0.00016438,2]
[351581499,1738642241443,-500.0,0.00016438,2]
[351581500,1738642241459,-649.36937525,0.00016438,2]
[351581501,1738642241468,-500.0,0.00016438,2]
[351581502,1738642241478,-500.0,0.00016438,2]
[351581503,1738642241488,-876.71,0.00016438,2]
[351581504,1738642241498,-500.0,0.00016438,2]
[351581505,1738642241507,-500.0,0.00016438,2]
[351581506,1738642241517,-500.0,0.00016438,2]
[351581507,1738642241527,-500.0,0.00016438,2]
[351581508,1738642241536,-198.09750096,0.00016438,2]
[351581509,1738642241546,-500.0,0.00016438,2]
[351581510,1738642241555,-500.0,0.00016438,2]
[351581511,1738642241564,-500.0,0.00016438,2]
[351581512,1738642241574,-500.0,0.00016438,2]
[351581513,1738642241583,-500.0,0.00016438,2]
[351581514,1738642241592,-500.0,0.00016438,2]
[351581515,1738642241602,-500.0,0.00016438,2]
[351581516,1738642241611,-500.0,0.00016438,2]
[351581517,1738642241622,-500.0,0.00016438,2]
[351581518,1738642241632,-500.0,0.00016438,2]
[351581519,1738642241641,-500.0,0.00016438,2]
[351581520,1738642241650,-316.05026394,0.00016438,2]
[351581521,1738642241659,-896.33,0.00016438,2]
[351581522,1738642241669,-500.0,0.00016438,2]
[351581523,1738642241678,-503.70404579,0.00016438,2]
[351581524,1738642241687,-500.0,0.00016438,2]
[351581525,1738642241699,-503.34998175,0.00016438,2]
[351581526,1738642241708,-500.0,0.00016438,2]
[351581527,1738642241718,-508.61522465,0.00016438,2]
[351581528,1738642241727,-500.0,0.00016438,2]
[351581529,1738642241737,-534.4,0.00016438,2]
[351581530,1738642241746,-500.92115732,0.00016438,2]
[351581531,1738642241756,-231.49666869,0.00016438,2]
[351581532,1738642241766,-500.0,0.00016438,2]
[351581533,1738642241776,-874.57,0.00016438,2]
[351581534,1738642241786,-500.0,0.00016438,2]
[351581535,1738642241796,-8752.35,0.00016438,2]
[351581536,1738642241807,-500.0,0.00016438,2]
[351581537,1738642241817,-500.0,0.00016438,2]
[351581538,1738642241827,-500.0,0.00016438,2]
[351581539,1738642241841,-500.0,0.00016438,2]
[351581540,1738642241851,-640.58,0.00016438,2]
[351581541,1738642241860,-508.64124674,0.00016438,2]
[351581542,1738642241871,-500.0,0.00016438,2]
[351581543,1738642241880,-500.0,0.00016438,2]
[351581544,1738642241890,-500.0,0.00016438,2]
[351581545,1738642241899,-500.0,0.00016438,2]
[351581546,1738642241910,-523.38829824,0.00016438,2]
[351581547,1738642241924,-1060.16,0.00016438,2]
[351581548,1738642241934,-511.18026251,0.00016438,2]
[351581549,1738642241946,-546.05426764,0.00016438,2]
[351581550,1738642241956,-500.0,0.00016438,2]
[351581551,1738642241966,-501.03236678,0.00016438,2]
[351581552,1738642241975,-264.32921473,0.00016438,2]
[351581553,1738642241985,-500.0,0.00016438,2]
[351581554,1738642241995,-500.0,0.00016438,2]
[351581555,1738642242005,-866.63,0.00016438,2]
[351581556,1738642242014,-512.47222196,0.00016438,2]
[351581557,1738642242024,-500.0,0.00016438,2]
[351581558,1738642242033,-500.0,0.00016438,2]
[351581559,1738642242043,-3438.61,0.00016438,2]
[351581560,1738642242052,-500.0,0.00016438,2]
[351581561,1738642242062,-500.0,0.00016438,2]
[351581562,1738642242072,-24770.85,0.00016438,2]
[351581563,1738642242082,-500.0,0.00016438,2]
[351581564,1738642242092,-500.0,0.00016438,2]
[351581565,1738642242102,-537.43171733,0.00016438,2]
[351581566,1738642242111,-500.0,0.00016438,2]
[351581567,1738642242120,-500.0,0.00016438,2]
[351581568,1738642242130,-500.0,0.00016438,2]
[351581569,1738642242139,-1247.82,0.00016438,2]
[351581570,1738642242148,-517.96,0.00016438,2]
[351581571,1738642242158,-500.0,0.00016438,2]
[351581572,1738642242167,-500.0,0.00016438,2]
[351581573,1738642242177,-500.0,0.00016438,2]
[351581574,1738642242196,-500.0,0.00016438,2]
[351581575,1738642242207,-500.0,0.00016438,2]
[351581576,1738642242218,-500.0,0.00016438,2]
[351581577,1738642242229,-500.0,0.00016438,2]
[351581578,1738642242240,-500.0,0.00016438,2]
[351581579,1738642242252,-2591.76,0.00016438,2]
[351581580,1738642242263,-500.0,0.00016438,2]
[351581581,1738642242274,-500.0,0.00016438,2]
[351581582,1738642242284,-500.0,0.00016438,2]
[351581583,1738642242295,-894.01,0.00016438,2]
[351581584,1738642242306,-500.0,0.00016438,2]
[351581585,1738642242316,-500.0,0.00016438,2]
[351581586,1738642242326,-500.0,0.00016438,2]
[351581587,1738642242337,-500.0,0.00016438,2]
[351581588,1738642242347,-1484.45,0.00016438,2]
[351581589,1738642242357,-1485.34,0.00016438,2]
[351581590,1738642242367,-500.54185304,0.00016438,2]
[351581591,1738642242377,-500.0,0.00016438,2]
[351581592,1738642242387,-9848.58,0.00016438,2]
[351581593,1738642242397,-186.20147416,0.00016438,2]
[351581605,1738642243734,-654.62852584,0.00016438,2]
[351581606,1738642243745,-183.30202175,0.00016438,2]
[351581607,1738642243756,-212.06945241,0.00016438,2]
[351581610,1738642243768,-287.93054759,0.00016438,2]
[351581612,1738642243777,-1168.45,0.00016438,2]
[351581614,1738642243788,-503.75730287,0.00016438,2]
[351581615,1738642243797,-500.0,0.00016438,2]
[351581616,1738642243807,-500.0,0.00016438,2]
[351581617,1738642243817,-500.0,0.00016438,2]
[351581618,1738642243826,-465.77847597,0.00016438,2]
[351581619,1738642243860,-541.95152403,0.00016438,2]
[351581620,1738642243870,-581.84,0.00016438,2]
[351581621,1738642243880,-500.0,0.00016438,2]
[351581622,1738642243890,-1026.74,0.00016438,2]
[351581623,1738642243900,-500.0,0.00016438,2]
[351581624,1738642243909,-500.0,0.00016438,2]
[351581625,1738642243921,-500.0,0.00016438,2]
[351581626,1738642243930,-464.09691151,0.00016438,2]
[351581631,1738642246364,-46.01373718,0.00016438,2]
[351581632,1738642246374,-500.0,0.00016438,2]
[351581633,1738642246384,-1468.08,0.00016438,2]
[351581634,1738642246394,-500.0,0.00016438,2]
[351581635,1738642246403,-500.0,0.00016438,2]
[351581636,1738642246413,-2105.15,0.00016438,2]
[351581637,1738642246423,-500.0,0.00016438,2]
[351581638,1738642246433,-1915.51112662,0.00016438,2]
[351581639,1738642246445,-323.19887338,0.00016438,2]
[351581640,1738642246456,-500.0,0.00016438,2]
[351581641,1738642246466,-500.0,0.00016438,2]
[351581642,1738642246475,-500.0,0.00016438,2]
[351581643,1738642246485,-500.0,0.00016438,2]
[351581644,1738642246495,-1327.88,0.00016438,2]
[351581645,1738642246505,-359.44937566,0.00016438,2]
[351581646,1738642246514,-500.0,0.00016438,2]
[351581647,1738642246524,-500.0,0.00016438,2]
[351581648,1738642246534,-2486.07,0.00016438,2]
[351581649,1738642246544,-4289.42,0.00016438,2]
[351581650,1738642246554,-888.46,0.00016438,2]
[351581651,1738642246564,-500.0,0.00016438,2]
[351581652,1738642246574,-626.60147156,0.00016438,2]
[351581653,1738642246583,-1804.48,0.00016438,2]
[351581654,1738642246594,-500.0,0.00016438,2]
[351581655,1738642246603,-500.0,0.00016438,2]
[351581656,1738642246613,-500.0,0.00016438,2]
[351581657,1738642246624,-563.22,0.00016438,2]
[351581658,1738642246634,-500.0,0.00016438,2]
[351581659,1738642246644,-500.0,0.00016438,2]
[351581660,1738642246653,-500.0,0.00016438,2]
[351581661,1738642246798,-152.84802516,0.00016438,2]
[351581662,1738642246809,-501.74125876,0.00016438,2]
[351581663,1738642246820,-1271.89,0.00016438,2]
[351581664,1738642246834,-500.0,0.00016438,2]
[351581665,1738642246846,-1139.13,0.00016438,2]
[351581666,1738642246857,-1558.39,0.00016438,2]
[351581667,1738642246867,-500.0,0.00016438,2]
[351581668,1738642246880,-500.0,0.00016438,2]
[351581669,1738642246891,-2785.9,0.00016438,2]
[351581670,1738642246902,-512.50320037,0.00016438,2]
[351581671,1738642246913,-302.59520422,0.00016438,2]
[351581672,1738642347337,763.56,0.00010959,2]
[351581685,1738643372371,247.501297,0.00013973,2]
[351581700,1738643432510,-342.0933004,0.00015398,2]
[351581701,1738643432679,-2550.89250454,0.00015398,2]
[351581769,1738643443322,-5592.95470806,0.00015398,2]
[351581770,1738643443334,-300.0,0.00015448,2]
[351581771,1738643443347,-8019.1904661,0.00015449,2]
[351581772,1738643443359,-220.606143,0.00015458,2]
[351581773,1738643443369,-900.0,0.00015972,2]
[351581774,1738643443379,-516.54341214,0.00016338,2]
[351581775,1738643443389,-163.0,0.0001636,2]
[351581776,1738643443399,-163.0,0.0001636,2]
[351581777,1738643443409,-163.0,0.0001636,2]
[351581778,1738643443419,-163.0,0.0001636,2]
[351581779,1738643443432,-163.0,0.0001636,2]
[351581780,1738643443442,-166.93,0.0001636,2]
[351581781,1738643443451,-165.44254084,0.00016373,2]
[351581782,1738643443461,-158.61,0.00016376,2]
[351581783,1738643443471,-153.0,0.00016387,2]
[351581784,1738643443480,-153.0,0.00016387,2]
[351581785,1738643443490,-153.0,0.00016387,2]
[351581786,1738643443500,-153.0,0.00016387,2]
[351581787,1738643443509,-153.0,0.00016387,2]
[351581788,1738643443519,-153.0,0.00016387,2]
[351581790,1738643443529,-153.0,0.00016387,2]
[351581792,1738643443539,-153.0,0.00016387,2]
[351581794,1738643443549,-1187.35622635,0.00016437,2]
[351581796,1738643443559,-499.0,0.00016437,2]
[351581797,1738643443570,-500.0,0.00016438,2]
[351581798,1738643443579,-521.99379617,0.00016438,2]
[351581799,1738643443589,-500.0,0.00016438,2]
[351581800,1738643443599,-512.14915651,0.00016438,2]
[351581801,1738643443608,-500.0,0.00016438,2]
[351581802,1738643443618,-500.0,0.00016438,2]
[351581803,1738643443628,-779.78,0.00016438,2]
[351581804,1738643443637,-500.0,0.00016438,2]
[351581805,1738643443648,-344.5625932,0.00016438,2]
[351581806,1738643443658,-500.0,0.00016438,2]
[351581807,1738643443668,-500.0,0.00016438,2]
[351581808,1738643443684,-519.66265864,0.00016438,2]
[351581809,1738643443694,-195.29528843,0.00016438,2]
[351581810,1738643443704,-500.0,0.00016438,2]
[351581811,1738643443714,-500.0,0.00016438,2]
[351581812,1738643443723,-500.0,0.00016438,2]
[351581813,1738643443733,-513.10990804,0.00016438,2]
[351581814,1738643443743,-518.0383552,0.00016438,2]
[351581815,1738643443752,-500.0,0.00016438,2]
[351581816,1738643443761,-500.0,0.00016438,2]
[351581817,1738643443771,-500.0,0.00016438,2]
[351581818,1738643443780,-500.0,0.00016438,2]
[351581819,1738643443789,-500.0,0.00016438,2]
[351581820,1738643443799,-500.0,0.00016438,2]
[351581821,1738643443808,-500.0,0.00016438,2]
[351581822,1738643443818,-500.0,0.00016438,2]
[351581823,1738643443827,-500.0,0.00016438,2]
[351581824,1738643443837,-500.0,0.00016438,2]
[351581825,1738643443846,-541.87,0.00016438,2]
[351581826,1738643443856,-500.0,0.00016438,2]
[351581828,1738643443865,-500.0,0.00016438,2]
[351581829,1738643443875,-574.50458865,0.00016438,2]
[351581830,1738643443884,-500.0,0.00016438,2]
[351581831,1738643443894,-500.0,0.00016438,2]
[351581832,1738643443903,-531.89,0.00016438,2]
[351581833,1738643444057,-500.0,0.00016438,2]
[351581834,1738643444067,-500.0,0.00016438,2]
[351581835,1738643444076,-500.0,0.00016438,2]
[351581836,1738643444086,-500.0,0.00016438,2]
[351581837,1738643444096,-500.0,0.00016438,2]
[351581838,1738643444105,-1124.07,0.00016438,2]
[351581839,1738643444114,-1071.27,0.00016438,2]
[351581840,1738643444124,-840.18,0.00016438,2]
[351581841,1738643444133,-197.5620575,0.00016438,2]
[351581842,1738643444143,-514.08373538,0.00016438,2]
[351581843,1738643444152,-151.0,0.00016438,2]
[351581844,1738643444161,-151.0,0.00016438,2]
[351581845,1738643444171,-500.0,0.00016438,2]
[351581846,1738643444183,-521.17527083,0.00016438,2]
[351581847,1738643444194,-500.0,0.00016438,2]
[351581848,1738643444203,-500.0,0.00016438,2]
[351581849,1738643444212,-151.0,0.00016438,2]
[351581850,1738643444221,-500.0,0.00016438,2]
[351581851,1738643444230,-500.0,0.00016438,2]
[351581852,1738643444240,-299.0,0.00016438,2]
[351581853,1738643444249,-858.99,0.00016438,2]
[351581854,1738643444258,-181.909496,0.00016438,2]
[351581855,1738643444268,-500.0,0.00016438,2]
[351581856,1738643444281,-500.0,0.00016438,2]
[351581857,1738643444290,-181.909496,0.00016438,2]
[351581858,1738643444299,-505.6610908,0.00016438,2]
[351581859,1738643444308,-151.0,0.00016438,2]
[351581860,1738643444319,-504.53445312,0.00016438,2]
[351581861,1738643444328,-500.0,0.00016438,2]
[351581862,1738643444338,-500.0,0.00016438,2]
[351581863,1738643444347,-500.0,0.00016438,2]
[351581864,1738643444357,-500.0,0.00016438,2]
[351581865,1738643444367,-838.13,0.00016438,2]
[351581866,1738643444376,-500.0,0.00016438,2]
[351581867,1738643444385,-151.0,0.00016438,2]
[351581868,1738643444395,-500.0,0.00016438,2]
[351581869,1738643444404,-151.0,0.00016438,2]
[351581870,1738643444413,-151.0,0.00016438,2]
[351581871,1738643444426,-500.0,0.00016438,2]
[351581872,1738643444435,-151.0,0.00016438,2]
[351581873,1738643444444,-500.0,0.00016438,2]
[351581874,1738643444453,-500.0,0.00016438,2]
[351581875,1738643444463,-500.0,0.00016438,2]
[351581876,1738643444472,-1511.28,0.00016438,2]
[351581877,1738643444481,-152.57851,0.00016438,2]
[351581878,1738643444491,-2833.02,0.00016438,2]
[351581879,1738643444500,-1015.98,0.00016438,2]
[351581880,1738643444509,-5307.58,0.00016438,2]
[351581881,1738643444519,-151.0,0.00016438,2]
[351581882,1738643444528,-500.0,0.00016438,2]
[351581883,1738643444538,-151.0,0.00016438,2]
[351581884,1738643444547,-8387.67,0.00016438,2]
[351581885,1738643444556,-624.81454648,0.00016438,2]
[351581886,1738643444565,-500.0,0.00016438,2]
[351581887,1738643444574,-500.0,0.00016438,2]
[351581888,1738643444583,-613.89,0.00016438,2]
[351581889,1738643444593,-512.14,0.00016438,2]
[351581890,1738643444602,-500.0,0.00016438,2]
[351581891,1738643444611,-500.0,0.00016438,2]